bitfinex/quotes_SOLUSD_20251212
["timestamp","ask_amount","ask_price","bid_price","bid_amount"]
[1765515925506,0.72,137.31,137.28,16.0864101]
[1765515926987,4.46386774,137.32,137.29,0.68]
[1765515927193,5.18386774,137.32,137.29,0.68]
[1765515927995,3.57241269,137.32,137.29,0.68]
[1765515928798,0.72,137.31,137.28,15.4064101]
[1765515929099,0.72,137.31,137.28,16.0864101]
[1765515933801,2.85241269,137.32,137.29,0.68]
[1765515933991,3.57241269,137.32,137.29,0.68]
[1765515935600,10.8547081,137.32,137.29,0.68]
[1765515935804,0.72,137.31,137.29,0.68]
[1765515936001,0.72,137.31,137.28,18.25882279]
[1765515936002,0.72,137.31,137.28,18.93882514]
[1765515936390,0.72,137.31,137.28,16.0864101]
[1765515936788,2.85241504,137.29,137.26,13.7270912]
[1765515937007,2.85241504,137.29,137.26,20.33214211]
[1765515937204,3.57241504,137.29,137.27,0.68]
[1765515937591,0.72,137.29,137.27,0.68]
[1765515938609,0.72,137.29,137.26,21.01214211]
[1765515938802,3.57241504,137.29,137.26,21.01214211]
[1765515940183,2.85241504,137.29,137.26,7.28505091]
[1765515940510,0.72,137.28,137.26,7.28505091]
[1765515940706,3.57241504,137.28,137.25,16.08793443]
[1765515940910,3.57241504,137.28,137.25,15.94577286]
[1765515947400,2.85241504,137.27,137.25,15.94577286]
[1765515948423,3.53241504,137.28,137.25,15.94577286]
[1765515948601,2.85241504,137.29,137.26,0.68]
[1765515948804,3.53241504,137.29,137.26,0.68]
[1765515949505,0.68,137.28,137.26,7.9654033]
[1765515949699,3.53241504,137.28,137.26,7.9654033]
[1765515949931,3.53241504,137.28,137.26,7.2854033]
[1765515951323,3.53241504,137.28,137.26,7.9654033]
[1765515951528,3.53241504,137.3,137.27,0.68]
[1765515951697,0.68,137.29,137.27,0.68]
[1765515952425,2.85241504,137.3,137.27,0.68]
[1765515952920,3.53241504,137.29,137.26,8.10756487]
[1765515953093,2.85241504,137.28,137.26,7.9654033]
[1765515953291,3.53241504,137.28,137.25,8.66]
[1765515953494,0.68,137.27,137.25,8.66]
[1765515955527,3.53241504,137.28,137.25,15.94564067]
[1765515956614,0.68,137.28,137.25,15.94564067]
[1765515956833,3.53241504,137.28,137.25,15.94564067]
[1765515958030,0.68,137.27,137.25,15.94564067]
[1765515958214,2.85241504,137.28,137.25,15.94564067]
[1765515958419,0.68,137.28,137.25,15.94564067]
[1765515958598,2.85241504,137.28,137.26,0.68]
[1765515958801,3.53241504,137.29,137.26,0.68]
[1765515959230,0.68,137.29,137.26,0.68]
[1765515959544,3.53241504,137.31,137.27,7.98]
[1765515959908,3.53241504,137.31,137.28,0.68]
[1765515960105,2.85241504,137.31,137.28,0.68]
[1765515960306,0.68,137.3,137.28,0.68]
[1765515961025,10.13555332,137.31,137.28,0.68]
[1765515961239,10.81486736,137.32,137.28,7.96421187]
[1765515961627,10.81486736,137.32,137.29,0.68]
[1765515963000,0.68,137.32,137.29,7.96383569]
[1765515963309,3.53241504,137.32,137.3,0.68]
[1765515963510,10.81473367,137.32,137.29,0.68]
[1765515969129,10.13473367,137.32,137.29,0.68]
[1765515969339,2.85241504,137.31,137.29,0.68]
[1765515969938,3.53241504,137.31,137.29,0.68]
[1765515970734,3.53241504,137.3,137.25,6.78815553]
[1765515970936,2.85241504,137.28,137.25,7.28593918]
[1765515971236,2.85241504,137.28,137.25,7.96593918]
[1765515971413,3.53241504,137.28,137.25,7.96593918]
[1765515971740,3.53241504,137.28,137.26,0.68]
[1765515976730,0.68,137.28,137.26,0.68]
[1765515978442,0.68,137.28,137.25,7.28593918]
[1765515978640,0.68,137.28,137.25,7.99593918]
[1765515978820,0.68,137.28,137.26,0.71]
[1765515981548,3.53397229,137.28,137.26,0.71]
[1765515982061,3.55397229,137.27,137.24,8.12216157]
[1765515982219,0.7,137.27,137.25,0.71]
[1765515984167,8.12216157,137.32,137.29,8.80994492]
[1765515984341,0.7,137.34,137.3,8.12216157]
[1765515984536,2.85397229,137.32,137.28,13.0470912]
[1765515984736,2.85397229,137.31,137.27,8.69]
[1765515984934,2.85397229,137.31,137.27,7.98]
[1765515985239,0.7,137.3,137.27,7.98]
[1765515985439,2.85397229,137.29,137.25,0.85216157]
[1765515985863,0.7,137.28,137.25,0.85216157]
[1765515986544,0.7,137.28,137.22,14.10531622]
[1765515986545,2.85397229,137.27,137.22,14.10531622]
[1765515986861,7.98455954,137.28,137.23,7.99702602]
[1765515987048,0.7,137.27,137.23,7.99702602]
[1765515987366,0.7,137.27,137.22,0.14216157]
[1765515987562,0.7,137.27,137.2,6.10815553]
[1765515987563,16.60106349,137.27,137.2,6.10815553]
[1765515987737,16.60106349,137.27,137.19,6.10815553]
[1765515987738,2.85397229,137.21,137.19,6.10815553]
[1765515988153,2.85397229,137.21,137.18,6.10815553]
[1765515988470,3.55397229,137.2,137.18,6.10815553]
[1765515989859,5.16559663,137.19,137.17,14.08815553]
[1765515990661,0.7,137.19,137.17,14.08815553]
[1765515990850,5.16559663,137.19,137.17,14.08815553]
[1765515991948,4.46559663,137.18,137.17,6.10815553]
[1765515992153,4.46559663,137.18,137.16,7.01815553]
[1765515993591,4.46559663,137.18,137.16,0.91]
[1765515995660,5.16559663,137.18,137.16,0.2]
[1765515996659,0.7,137.18,137.16,0.2]
[1765515996967,12.45481238,137.19,137.16,0.91]
[1765515999173,7.98921575,137.19,137.16,0.91]
[1765515999370,12.45481238,137.19,137.16,0.91]
[1765516002673,12.45432948,137.2,137.17,0.71]
[1765516002967,0.7,137.22,137.17,0.71]
[1765516003157,0.68,137.21,137.18,7.98]
[1765516003362,5.14559663,137.21,137.18,8.64]
[1765516003870,4.46559663,137.19,137.18,7.98]
[1765516004170,4.46559663,137.19,137.16,0.2]
[1765516004474,5.14559663,137.18,137.16,0.2]
[1765516005277,5.14559663,137.17,137.16,0.2]
[1765516006859,11.75551156,137.18,137.16,0.86]
[1765516007178,12.43480136,137.19,137.16,0.86]
[1765516007487,12.43438214,137.2,137.17,0.66]
[1765516008076,0.68,137.19,137.17,0.66]
[1765516009275,7.28969237,137.18,137.16,0.2]
[1765516009466,11.755289,137.18,137.16,0.2]
[1765516009673,12.435289,137.18,137.16,0.2]
[1765516011561,0.68,137.17,137.16,0.2]
[1765516011759,5.14559663,137.17,137.16,0.2]
[1765516013461,4.46559663,137.17,137.16,0.2]
[1765516013657,7.96969237,137.18,137.16,0.2]
[1765516013864,4.46559663,137.17,137.16,0.2]
[1765516014484,5.14559663,137.17,137.16,0.2]
[1765516014982,4.46559663,137.17,137.16,0.2]
[1765516016107,5.14559663,137.17,137.16,0.2]
[1765516016881,12.43582043,137.17,137.16,0.2]
[1765516017078,12.43741735,137.17,137.16,0.2]
[1765516021894,142.44794177,137.21,137.16,0.86]
[1765516022190,4.46719355,137.19,137.16,0.86]
[1765516022397,4.46719355,137.18,137.16,0.86]
[1765516023495,12.43672217,137.19,137.16,0.86]
[1765516024906,4.46719355,137.2,137.17,0.66]
[1765516025071,5.14719355,137.2,137.17,0.66]
[1765516026190,5.14719355,137.2,137.16,1.00216157]
[1765516026191,0.68,137.19,137.16,1.00216157]
[1765516026888,0.68,137.19,137.16,0.34216157]
[1765516027193,0.68,137.19,137.17,0.66]
[1765516027893,11.75591678,137.2,137.17,0.66]
[1765516028081,12.43591678,137.2,137.17,0.66]
[1765516029379,0.68,137.19,137.16,0.34216157]
[1765516029695,4.46719355,137.18,137.16,0.2]
[1765516030092,0.68,137.17,137.16,0.2]
[1765516030678,5.14719355,137.18,137.16,0.2]
[1765516031481,12.43722268,137.18,137.16,0.2]
[1765516034703,7.97002913,137.18,137.16,0.2]
[1765516034887,12.43722268,137.18,137.16,0.2]
[1765516037096,12.43722268,137.18,137.16,0.92]
[1765516037607,12.43722268,137.18,137.16,0.2]
[1765516038303,12.43722268,137.18,137.16,0.92]
[1765516038505,142.44798453,137.21,137.16,0.92]
[1765516038810,5.13719355,137.2,137.17,0.72]
[1765516040388,12.42595806,137.2,137.17,0.72]
[1765516041692,11.75595806,137.2,137.17,0.72]
[1765516042009,12.42595806,137.2,137.17,0.72]
[1765516044500,7.95876451,137.2,137.17,0.72]
[1765516044696,12.42595806,137.2,137.17,0.72]
[1765516047918,0.67,137.19,137.17,0.72]
[1765516050209,10.14643292,137.2,137.17,0.72]
[1765516050413,10.81643292,137.2,137.17,0.72]
[1765516050595,7.95876451,137.2,137.17,0.72]
[1765516050917,10.81643292,137.2,137.17,0.72]
[1765516057729,10.81629711,137.2,137.17,0.72]
[1765516058023,53.15510123,137.26,137.18,0.14216157]
[1765516058024,7.2875674,137.22,137.18,0.14216157]
[1765516058396,7.2875674,137.22,137.19,0.72]
[1765516058609,7.9575674,137.22,137.19,0.72]
[1765516060829,7.2875674,137.22,137.19,0.72]
[1765516061510,0.67,137.25,137.22,0.14216157]
[1765516061821,2.8575326,137.27,137.22,0.14216157]
[1765516062027,0.67,137.26,137.23,0.72]
[1765516062599,7.95565428,137.26,137.23,0.72]
[1765516063222,7.28565428,137.26,137.23,0.72]
[1765516063415,10.14259037,137.27,137.23,0.72]
[1765516063621,7.96440257,137.28,137.24,0.14216157]
[1765516063802,7.96440257,137.28,137.24,2.99969417]
[1765516064003,7.96440257,137.28,137.25,0.72]
[1765516064439,114.02153321,137.29,137.25,0.72]
[1765516064646,10.82153321,137.29,137.25,0.72]
[1765516065117,7.28349364,137.3,137.26,0.14216157]
[1765516065324,10.14102624,137.3,137.26,0.14216157]
[1765516065504,10.14102624,137.3,137.27,0.72]
[1765516065709,10.82102624,137.3,137.27,0.72]
[1765516066810,2.8575326,137.28,137.25,7.98]
[1765516067134,2.8575326,137.28,137.25,8.7]
[1765516067343,3.5375326,137.28,137.25,8.7]
[1765516068021,0.68,137.29,137.26,0.72]
[1765516068221,3.5375326,137.29,137.26,0.72]
[1765516068420,10.82146042,137.29,137.26,0.72]
[1765516071222,0.68,137.28,137.25,7.98]
[1765516071422,0.68,137.28,137.26,0.72]
[1765516071622,3.5375326,137.28,137.26,0.72]
[1765516073638,2.8575326,137.28,137.26,0.72]
[1765516074138,3.5375326,137.28,137.26,0.72]
[1765516074940,7.96441737,137.28,137.26,0.72]
[1765516075129,10.82194997,137.28,137.25,8.7]
[1765516076445,10.82194997,137.28,137.26,0.72]
[1765516076742,7.96441737,137.28,137.26,0.72]
[1765516080141,0.68,137.28,137.26,0.72]
[1765516081343,0.68,137.28,137.25,7.98]
[1765516081545,2.8575326,137.26,137.22,7.2873895]
[1765516081750,2.8575326,137.26,137.23,0.72]
[1765516081945,3.5375326,137.26,137.23,0.72]
[1765516082740,3.5375326,137.27,137.23,8.00691592]
[1765516083138,3.5375326,137.27,137.24,0.72]
[1765516083346,0.68,137.27,137.24,0.72]
[1765516084525,7.96493941,137.27,137.24,0.72]
[1765516087248,7.28493941,137.27,137.24,0.72]
[1765516087463,7.9643962,137.28,137.24,8.00640748]
[1765516087832,0.68,137.27,137.25,0.72]
[1765516090351,7.96392123,137.29,137.25,8.00590639]
[1765516090538,7.96392123,137.29,137.25,15.98590639]
[1765516090741,7.96392123,137.29,137.26,0.72]
[1765516090944,7.28392123,137.29,137.26,0.72]
[1765516091175,0.68,137.28,137.26,0.72]
[1765516091957,7.96392123,137.29,137.26,0.72]
[1765516092157,0.68,137.28,137.26,0.72]
[1765516094964,0.72,137.29,137.26,0.72]
[1765516095257,0.72,137.28,137.26,0.72]
[1765516095631,3.5775326,137.28,137.26,0.72]
[1765516096051,0.67,137.27,137.25,7.98]
[1765516096453,0.67,137.27,137.25,8.66]
[1765516097156,3.5275326,137.27,137.25,7.98]
[1765516097950,3.5275326,137.27,137.25,0.68]
[1765516099049,0.67,137.27,137.25,0.68]
[1765516100468,0.67,137.27,137.24,7.96636963]
[1765516101269,10.80943116,137.27,137.23,15.94685685]
[1765516101760,0.67,137.26,137.23,15.94685685]
[1765516102165,0.67,137.26,137.24,0.68]
[1765516102744,0.67,137.26,137.23,15.94685685]
[1765516102944,0.67,137.28,137.24,0.82216157]
[1765516103150,10.80775834,137.3,137.25,2.85434667]
[1765516103355,7.95341167,137.3,137.25,2.85434667]
[1765516103568,0.67,137.29,137.26,0.68]
[1765516104066,2.85434667,137.28,137.24,8.10860206]
[1765516104449,0.67,137.27,137.24,8.10860206]
[1765516105672,2.85434667,137.28,137.25,0.68]
[1765516105874,3.52434667,137.28,137.25,0.68]
[1765516108671,0.67,137.27,137.25,0.68]
[1765516110974,0.67,137.27,137.24,7.42860206]
[1765516111152,0.67,137.27,137.24,8.10860206]
[1765516111490,0.67,137.27,137.25,0.68]
[1765516112191,4.45957945,137.26,137.23,7.98]
[1765516112395,4.45957945,137.25,137.22,7.96739056]
[1765516112852,5.12957945,137.25,137.23,0.68]
[1765516113255,5.12957945,137.25,137.22,7.28739056]
[1765516113477,5.12957945,137.25,137.22,7.96739056]
[1765516113711,5.12957945,137.25,137.22,7.28739056]
[1765516113976,12.41450295,137.27,137.23,7.96682828]
[1765516114152,5.12957945,137.27,137.24,7.28645935]
[1765516114348,0.67,137.26,137.24,7.96645935]
[1765516114572,0.67,137.26,137.24,7.28645935]
[1765516120197,4.45957945,137.27,137.25,0.68]
[1765516120360,7.98,137.28,137.25,0.68]
[1765516120568,0.67,137.29,137.25,0.68]
[1765516120785,11.7430802,137.3,137.25,0.68]
[1765516121079,0.67,137.28,137.25,0.68]
[1765516121882,0.67,137.28,137.25,7.96555826]
[1765516122183,12.4130802,137.3,137.26,0.68]
[1765516122379,11.7430802,137.3,137.26,0.68]
[1765516122679,5.12957945,137.3,137.26,0.68]
[1765516123182,5.11957945,137.29,137.26,0.68]
[1765516124178,5.11957945,137.29,137.26,7.9654247]
[1765516125084,5.11957945,137.29,137.26,0.68]
[1765516125768,5.11957945,137.29,137.26,7.96534591]
[1765516129088,0.66,137.29,137.26,7.96534591]
[1765516129285,5.11957945,137.29,137.26,7.96534591]
[1765516139194,5.11880488,137.29,137.27,0.71]
[1765516139398,0.66,137.29,137.27,0.71]
[1765516140071,7.28368152,137.3,137.27,7.99490076]
[1765516140272,7.28368152,137.3,137.28,0.71]
[1765516140466,7.94368152,137.3,137.28,0.71]
[1765516141292,7.94368152,137.3,137.27,0.71]
[1765516141293,0.66,137.29,137.27,0.71]
[1765516141493,7.94368152,137.3,137.27,0.71]
[1765516141686,7.94368152,137.3,137.28,0.71]
[1765516142381,11.74415079,137.33,137.29,0.14216157]
[1765516142583,0.66,137.33,137.3,0.71]
[1765516143416,12.40068859,137.33,137.3,0.71]
[1765516143903,0.66,137.32,137.3,0.71]
[1765516146594,12.40068859,137.33,137.3,0.71]
[1765516146777,0.66,137.32,137.3,0.71]
[1765516147602,5.11880488,137.32,137.3,0.71]
[1765516148185,0.66,137.32,137.3,0.71]
[1765516148990,15.92122902,137.34,137.3,0.71]
[1765516149185,7.94122902,137.34,137.3,7.99315322]
[1765516149385,12.4000339,137.34,137.3,7.99315322]
[1765516149601,7.94122902,137.34,137.31,0.71]
[1765516149802,12.4000339,137.34,137.31,0.71]
[1765516152005,0.66,137.33,137.31,0.71]
[1765516152806,4.45880488,137.32,137.29,0.14216157]
[1765516153006,4.45880488,137.32,137.29,0.82216157]
[1765516153310,5.14880488,137.32,137.29,0.82216157]
[1765516153497,4.45880488,137.32,137.29,0.82216157]
[1765516154693,5.14880488,137.31,137.27,0.68]
[1765516154894,5.14880488,137.31,137.26,20.33218038]
[1765516155108,0.69,137.3,137.28,0.68]
[1765516160023,7.97338323,137.3,137.28,0.68]
[1765516160413,12.43218811,137.3,137.28,0.68]
[1765516160612,0.67,137.29,137.26,0.81216157]
[1765516160814,0.67,137.29,137.25,8.65]
[1765516160815,4.45880488,137.28,137.25,8.65]
[1765516161202,5.12880488,137.28,137.25,8.65]
[1765516161600,12.41351875,137.28,137.25,8.65]
[1765516170339,12.4128395,137.29,137.26,0.67]
[1765516170739,11.74220976,137.3,137.26,0.67]
[1765516170949,12.41220976,137.3,137.26,0.67]
[1765516171115,0.67,137.29,137.26,0.67]
[1765516174341,10.8068034,137.3,137.26,0.67]
[1765516174527,7.28340488,137.3,137.26,7.95520341]
[1765516174731,10.80628974,137.31,137.27,0.14216157]
[1765516175046,10.80628974,137.31,137.28,0.67]
[1765516175228,7.28289122,137.31,137.28,0.67]
[1765516175944,7.95289122,137.31,137.28,0.67]
[1765516177035,7.95289122,137.31,137.23,0.67]
[1765516177036,2.85339852,137.29,137.23,0.67]
[1765516177218,2.85339852,137.25,137.23,0.67]
[1765516177632,2.85339852,137.24,137.22,7.98]
[1765516177835,2.85339852,137.23,137.22,7.98]
[1765516178417,3.52339852,137.24,137.22,7.98]
[1765516179942,3.52600951,137.24,137.22,7.98]
[1765516181449,2.85600951,137.23,137.22,7.98]
[1765516183543,7.95654214,137.24,137.22,7.98]
[1765516183748,10.81255165,137.24,137.22,7.98]
[1765516184844,10.14205587,137.25,137.23,0.67]
[1765516185145,7.28604636,137.25,137.23,0.67]
[1765516185445,10.14205587,137.25,137.23,0.67]
[1765516186046,10.80205587,137.25,137.22,8.65]
[1765516186645,0.66,137.25,137.22,8.65]
[1765516186828,3.51600951,137.25,137.23,0.67]
[1765516188043,3.51600951,137.25,137.22,15.26739681]
[1765516188250,3.51600951,137.24,137.22,7.98]
[1765516188778,2.85600951,137.23,137.22,7.98]
[1765516188946,3.51600951,137.23,137.22,7.98]
[1765516189423,10.80304587,137.23,137.2,0.67]
[1765516189625,3.51600951,137.22,137.19,15.93899507]
[1765516189825,2.85600951,137.22,137.2,0.67]
[1765516190834,3.51600951,137.22,137.2,0.67]
[1765516191033,3.51600951,137.22,137.19,7.98]
[1765516191034,3.51600951,137.22,137.19,8.65]
[1765516191236,3.51600951,137.21,137.19,7.98]
[1765516192442,10.80415128,137.21,137.19,7.98]
[1765516193758,10.80415128,137.21,137.16,0.34216157]
[1765516193759,0.66,137.2,137.16,0.34216157]
[1765516194048,2.85600951,137.19,137.16,0.87]
[1765516194256,3.51600951,137.19,137.16,0.87]
[1765516194655,0.66,137.19,137.16,0.87]
[1765516194857,3.51600951,137.19,137.16,0.87]
[1765516195055,10.80532026,137.19,137.16,0.87]
[1765516197547,10.14532026,137.19,137.16,0.2]
[1765516197750,3.51600951,137.18,137.16,0.2]
[1765516198058,3.51600951,137.18,137.16,0.87]
[1765516199060,0.66,137.18,137.16,0.87]
[1765516199354,0.66,137.18,137.16,0.2]
[1765516199562,0.66,137.18,137.16,0.87]
[1765516201276,2.85600951,137.17,137.16,0.2]
[1765516201642,3.51600951,137.17,137.16,0.2]
[1765516203369,10.80623331,137.17,137.16,0.2]
[1765516204172,18.98623331,137.17,137.16,0.2]
[1765516204374,13.0470912,137.15,137.14,0.2]
[1765516204582,15.90310071,137.15,137.14,0.2]
[1765516204876,24.54310071,137.15,137.14,0.2]
[1765516205463,31.83438762,137.15,137.14,0.2]
[1765516211310,18.12729642,137.15,137.14,0.2]
[1765516211585,18.78729642,137.15,137.14,0.2]
[1765516212477,15.93128691,137.15,137.14,0.2]
[1765516212662,18.78729642,137.15,137.14,0.2]
[1765516213288,10.80729642,137.15,137.14,0.2]
[1765516213489,10.14676483,137.16,137.14,0.86]
[1765516214587,10.14729642,137.15,137.14,0.2]
[1765516214892,10.82729642,137.15,137.14,0.2]
[1765516215689,18.80729642,137.15,137.14,0.2]
[1765516218364,43.80466519,137.15,137.13,0.2]
[1765516218566,109.63201902,137.14,137.13,1e-08]
[1765516219382,13.0470912,137.12,137.11,0.2]
[1765516219591,23.88310071,137.12,137.11,0.2]
[1765516219894,24.60310071,137.12,137.11,0.2]
[1765516220079,24.60938462,137.12,137.11,0.2]
[1765516220280,31.90226676,137.12,137.11,0.2]
[1765516222572,31.90226676,137.12,137.1,0.2]
[1765516222573,2.86229342,137.11,137.1,0.2]
[1765516222772,3.58229342,137.11,137.1,0.2]
[1765516223414,106.78229342,137.11,137.07,0.2]
[1765516223573,2.86229342,137.09,137.07,0.2]
[1765516223768,3.58229342,137.09,137.07,0.2]
[1765516225608,10.8767715,137.09,137.07,0.2]
[1765516227010,10.8767715,137.09,137.08,1e-08]
[1765516227011,33.01813076,137.09,137.08,1e-08]
[1765516228115,33.01813076,137.09,137.05,1e-08]
[1765516228116,13.0470912,137.06,137.05,1e-08]
[1765516228282,35.8459461,137.06,137.03,0.2]
[1765516228484,0.72,137.05,137.03,0.2]
[1765516228800,7.98,137.04,137.03,0.2]
[1765516228986,10.84229342,137.04,137.03,0.2]
[1765516229186,11.56229342,137.04,137.03,0.2]
[1765516230090,15.99713952,137.04,137.03,0.2]
[1765516230289,18.85943294,137.04,137.03,0.2]
[1765516233906,20.47515831,137.04,137.03,0.2]
[1765516236004,12.49515831,137.04,137.03,0.2]
[1765516236208,20.49515831,137.04,137.03,0.2]
[1765516239511,20.49515831,137.04,137.03,0.86]
[1765516239512,15.29713952,137.04,137.03,0.86]
[1765516239822,19.77515831,137.04,137.03,0.86]
[1765516240030,7.29713952,137.04,137.03,0.86]
[1765516240331,11.77515831,137.04,137.03,0.86]
[1765516240790,110.49675566,137.05,137.03,0.86]
[1765516240992,11.77477445,137.05,137.04,0.66]
[1765516242722,7.29675566,137.05,137.04,0.66]
[1765516245425,4.47801879,137.07,137.04,0.66]
[1765516245603,31.28501612,137.08,137.04,0.66]
[1765516245604,103.2,137.1,137.05,4.47801879]
[1765516245805,4.47801879,137.1,137.06,0.81216157]
[1765516246512,4.47801879,137.08,137.06,0.67]
[1765516246714,4.47801879,137.07,137.04,0.67]
[1765516247017,4.47801879,137.06,137.04,0.67]
[1765516248522,11.77414016,137.06,137.04,0.67]
[1765516251900,4.47801879,137.05,137.03,0.2]
[1765516252107,4.47801879,137.04,137.03,0.2]
[1765516252422,5.16801879,137.04,137.03,0.2]
[1765516252818,4.47801879,137.04,137.03,0.2]
[1765516253022,8.69,137.05,137.03,0.2]
[1765516253200,4.47801879,137.04,137.03,0.2]
[1765516253832,12.46515831,137.04,137.03,0.2]
[1765516257927,11.77515831,137.04,137.03,0.2]
[1765516258436,12.46515831,137.04,137.03,0.2]
[1765516259220,7.29713952,137.04,137.03,0.2]
[1765516259541,11.77515831,137.04,137.03,0.2]
[1765516260434,7.29713952,137.04,137.03,0.87]
[1765516260742,11.77224253,137.04,137.03,0.87]
[1765516261445,7.29660707,137.05,137.03,0.87]
[1765516261617,7.29660707,137.05,137.04,0.67]
[1765516261817,11.77171008,137.05,137.03,0.2]
[1765516262037,11.77171008,137.05,137.04,0.67]
[1765516262513,11.77171008,137.05,137.03,0.2]
[1765516262828,103.2,137.07,137.03,0.87]
[1765516263041,11.77025556,137.08,137.03,12.64272122]
[1765516263238,11.77025556,137.08,137.04,0.67]
[1765516263534,11.76976704,137.09,137.04,0.67]
[1765516264120,4.47510301,137.08,137.04,0.67]
[1765516264532,11.76976704,137.09,137.04,0.67]
[1765516264935,11.76976704,137.09,137.04,7.96687146]
[1765516265342,11.76976704,137.09,137.05,0.67]
[1765516266340,7.29466403,137.09,137.05,0.67]
[1765516266515,11.76976704,137.09,137.05,0.67]
[1765516267331,7.29466403,137.09,137.05,7.96652698]
[1765516267651,32.81621231,137.1,137.06,0.67]
[1765516267816,28.3411093,137.1,137.06,0.67]
[1765516268018,19.76912111,137.1,137.06,0.67]
[1765516268238,4.47510301,137.08,137.06,0.67]
[1765516268430,4.47510301,137.07,137.06,0.67]
[1765516268827,4.47510301,137.07,137.05,0.67]
[1765516269834,7.29501021,137.08,137.05,0.67]
[1765516270039,4.47510301,137.07,137.05,0.67]
[1765516272047,4.47510301,137.06,137.04,0.67]
[1765516272429,4.47510301,137.06,137.02,0.14216157]
[1765516273147,11.77144195,137.06,137.02,0.14216157]
[1765516273443,7.29633894,137.06,137.02,0.14216157]
[1765516274141,7.29633894,137.06,137.02,11.91521976]
[1765516274445,7.29569434,137.07,137.03,5.14510301]
[1765516274860,7.29569434,137.07,137.04,0.67]
[1765516276261,7.29465077,137.09,137.05,4.61726458]
[1765516276557,8.0,137.1,137.06,4.47510301]
[1765516276743,8.0,137.1,137.07,0.66]
[1765516277263,19.76916398,137.1,137.07,0.66]
[1765516277442,5.19510301,137.09,137.05,0.14216157]
[1765516277646,5.19510301,137.09,137.05,0.80216157]
[1765516277838,5.19510301,137.08,137.04,0.14216157]
[1765516278149,4.47510301,137.08,137.04,0.80216157]
[1765516278543,4.47510301,137.08,137.04,8.09918129]
[1765516278876,4.47510301,137.09,137.04,8.09918129]
[1765516279238,5.19510301,137.09,137.04,8.09918129]
[1765516279627,7.29501021,137.08,137.04,8.09918129]
[1765516280355,11.77011322,137.08,137.04,8.09918129]
[1765516282044,11.77011322,137.08,137.01,14.8550912]
[1765516282252,11.77011322,137.08,137.02,12.43291579]
[1765516282747,11.77011322,137.08,137.03,0.66]
[1765516283053,11.77011322,137.08,137.03,12.43259327]
[1765516283428,11.77011322,137.08,137.04,0.66]
[1765516284250,11.77011322,137.08,137.03,0.14216157]
[1765516284454,12.49011322,137.08,137.03,0.14216157]
[1765516286247,8.01501021,137.08,137.03,7.55982415]
[1765516286449,12.49011322,137.08,137.03,7.55982415]
[1765516287039,8.01501021,137.08,137.03,7.55982415]
[1765516287232,12.49011322,137.08,137.03,7.55982415]
[1765516288451,12.4907659,137.07,137.03,7.55982415]
[1765516288636,12.4907659,137.07,137.03,7.43982415]
[1765516289031,12.4907659,137.07,137.03,7.55982415]
[1765516289435,5.19510301,137.06,137.02,7.29802086]
[1765516290131,15.29566289,137.07,137.01,8.91237797]
[1765516290132,5.19510301,137.05,137.01,8.91237797]
[1765516290644,5.19510301,137.05,137.01,9.03237797]
[1765516292056,5.19510301,137.05,137.01,8.91237797]
[1765516292437,5.19510301,137.05,137.01,9.03237797]
[1765516293888,0.72,137.05,137.01,9.03237797]
[1765516294460,7.29659098,137.06,137.01,9.03237797]
[1765516294661,2.86355324,137.05,137.01,9.03237797]
[1765516295662,2.86355324,137.03,137.0,7.64126793]
[1765516296354,0.72,137.04,137.0,7.64126793]
[1765516296661,3.58355324,137.04,137.0,7.64126793]
[1765516298165,10.88069436,137.04,137.0,7.64126793]
[1765516299065,0.72,137.03,137.0,7.64126793]